FIN.Transaction Date,MCH.Merchant Name,FIN.Accounting Code 01 Description,FIN.Accounting Code 03 Description,FIN.Net Transaction Amount,FIN.Transaction Amount,FIN.TAX.Net Amount,FIN.Tax Amount,FIN.TAX.Tax Rate,FIN.Tax Rate(%)
31/12/2014,CIEH LIMITED,Central Personnel Expenses,Internal Training,196,196,0,0,0,0
31/12/2014,FACEBOOK 96JFX6WR52,Palace Theatre,Advertising,137.76,137.76,0,0,0,0
05/01/2015,OSBORNES NEWARK,Vehicle Pool Workshop,Materials,14.14,16.97,0,2.83,0,20
05/01/2015,WILKO.COM,Housing Options,Office Equipment Purchase,7.65,7.65,0,0,0,0
05/01/2015,COUNTY COURT,Housing Options,Professional Services,50,50,0,0,0,0
05/01/2015,DISCLOSURE & BARRING,Leisure Centres,Professional Services,13,13,0,0,0,0
05/01/2015,CO-OP GROUP 017957,Southwell Tr admin & ops,Meals,10,10,0,0,0,0
05/01/2015,EC MAINLINE CO INT,Financial Services,Travel And Subsistence,161.7,161.7,0,0,0,0
05/01/2015,INTELLECTUAL PROP. OFC,Housing Options,Prevention Fund,170,170,0,0,0,0
06/01/2015,DISCLOSURE & BARRING,Leisure Centres,Professional Services,13,13,0,0,0,0
06/01/2015,East Midlands,Legal Section,Travel And Subsistence,56.6,56.6,0,0,0,0
06/01/2015,XMA LTD,Communications & Cust Services,Stationery,56.1,67.32,0,11.22,0,0
07/01/2015,FARMSTAR LTD,Grounds Maintenance,Materials,53.54,64.25,0,10.71,0,20
07/01/2015,WWW.SWIMMING.ORG,Southwell Tr admin & ops,Training Expenses,112.5,135,0,22.5,0,20
07/01/2015,SAUNASHOP.COM,Southwell Tr admin & ops,Repairs And Maintenance,303.71,364.45,0,60.74,0,20
07/01/2015,Amazon  Mktplce EU-UK,Community Safety Partnership,Contractual Services,53.97,53.97,0,0,0,0
08/01/2015,SCREWFIX DIRECT,Grounds Maintenance,Materials,49.99,49.99,0,0,0,0
08/01/2015,ARGOS LTD,Housing Options,Prevention Fund,39.94,39.94,0,0,0,0
08/01/2015,WH SMITH,Housing Options,Prevention Fund,6.99,6.99,0,0,0,0
08/01/2015,VIRGIN MEDIA PYMTS,Sconce & Devon Park,Telephones,36.62,36.62,0,0,0,0
08/01/2015,MISTRYMEDICAL.CO.U,Blidworth Leisure Centre,Other Equipment And Tools,92.45,110.94,0,18.49,0,20
08/01/2015,CURRYS ONLINE,Leisure Centres,Advertising,20.82,24.99,0,4.17,0,20
08/01/2015,SPORTSDIRECT.COM,Sports Development,Parish Cncls And Vol Bodies,29.98,29.98,0,0,0,0
08/01/2015,SPORTSDIRECT.COM,Sports Development,Parish Cncls And Vol Bodies,51.96,51.96,0,0,0,0
08/01/2015,COMPANIES HOUSE,Planning Support,Other Expenses,2,2,0,0,0,0
08/01/2015,Virgintrains.co.uk,Strategic Hsg (Was Community),Travel And Subsistence,101,101,0,0,0,0
08/01/2015,East Midlands,Committee Section,Travel And Subsistence,183.8,183.8,0,0,0,0
08/01/2015,EBAY EUROPE SARL,Communications & Cust Services,Corporate Communication,7.92,7.92,0,0,0,0
08/01/2015,OYSTER AUTOTOPUP,Aggregated Budgets,Travel And Subsistence,20,20,0,0,0,0
09/01/2015,Amazon EU,Central Personnel Expenses,Internal Training,29.74,29.74,0,0,0,0
09/01/2015,WILKO RETAIL LIMIT,Cashiers,Office Equipment Purchase,5.67,6.8,0,1.13,0,20
08/01/2015,WWW.THESOCCERSTORE.CO.,Sports Development,Parish Cncls And Vol Bodies,20.78,24.94,0,4.16,0,20
09/01/2015,Amazon  Mktplce EU-UK,Env Health Reactive,Professional Services,4,4,0,0,0,0
12/01/2015,DOG INK LIMITED,Southwell Tr admin & ops,Printing,98.27,117.93,0,19.66,0,20
12/01/2015,ASDA  STORES 4201,Resource Centre. Museums,Travel And Subsistence,17.67,17.67,0,0,0,0
12/01/2015,POST OFFICE COUNTER,Southwell Tr admin & ops,Postages,19.2,19.2,0,0,0,0
12/01/2015,WWW.MONEYCLAIM.GOV,Other Properties,Professional Services,550,550,0,0,0,0
12/01/2015,East Midlands,Corporate Management Team,Travel And Subsistence,92,92,0,0,0,0
13/01/2015,1ST CONTAINERS,Grove Leisure Centre,Planned Maintenance - Grove,1650,1980,0,330,0,20
13/01/2015,CO-OP GROUP 019361,Southwell Tr admin & ops,Meals,3.59,3.59,0,0,0,0
13/01/2015,CIEH LIMITED,Env Health Reactive,Professional Services,39,39,0,0,0,0
13/01/2015,CURRYS,Leisure Centres,Advertising,-5,-5,0,0,0,0
13/01/2015,BUILDBASE NEWARK,Newark Open Market,Other Equipment And Tools,17.7,21.24,0,3.54,0,20
14/01/2015,J P LENNARD LTD,Grove Leisure Centre,Planned Maintenance - Grove,1064.44,1277.33,0,212.89,0,20
14/01/2015,TEES SPORT,Southwell Tr admin & ops,Other Equipment Maintenance,36.5,43.8,0,7.3,0,20
14/01/2015,COTECH T/A THE FA - PA,Southwell Tr admin & ops,Training Expenses,145.83,175,0,29.17,0,20
14/01/2015,COTECH T/A THE FA - PA,Licensing Admin,Internal Training,175,175,0,0,0,0
14/01/2015,WI-FI EAST COAST,Corporate Management Team,Travel And Subsistence,4.95,4.95,0,0,0,0
14/01/2015,EC MAINLINE CO INT,Corporate Management Team,Travel And Subsistence,56.3,56.3,0,0,0,0
14/01/2015,SOUTH LINCS CLOTHING,Car Parks & Markets Admin,Clothing And Uniforms,83.33,100,0,16.67,0,20
14/01/2015,FARMSTAR LTD,Grounds Maintenance,Contractual Services,68.63,82.36,0,13.73,0,20
14/01/2015,EC MAINLINE CO INT,Corporate Management Team,Travel And Subsistence,120.05,120.05,0,0,0,0
14/01/2015,EC MAINLINE CO INT,Central Personnel Expenses,Internal Training,120.05,120.05,0,0,0,0
15/01/2015,WWW.ELITEINDUSTRIAL.CO,Emergency Planning,Contractual Services,78.39,94.07,0,15.68,0,20
15/01/2015,PAYPAL  THEBCI,Emergency Planning,Contractual Services,325,390,0,65,0,20
15/01/2015,CHARTERED INST OF LEGA,Legal Section,Legal income account,318.5,318.5,0,0,0,0
14/01/2015,PREMIER TRAVEL INN,Corporate Management Team,Travel And Subsistence,-122,-122,0,0,0,0
15/01/2015,WM MORRISON 048,Env Health Proactive,Catering Equipment,11.81,11.81,0,0,0,0
16/01/2015,NATIONAL PORTRAIT,National Civil War Centre,Advertising,450,540,0,90,0,20
16/01/2015,WWW.OFFICEFURNITUREONL,Building Services,Furniture And Fittings,151,181.2,0,30.2,0,20
17/01/2015,Amazon  Mktplce EU-UK,National Civil War Centre,Items For Resale,13.99,13.99,0,0,0,0
16/01/2015,NEWARK & SHERWOOD LOCK,Housing Options,Prevention Fund,56,56,0,0,0,0
16/01/2015,WWW.CIPFA.ORG.UK,Corporate Management Team,Subscriptions,310,310,0,0,0,0
21/01/2015,WWW.DEFIBSHOP.CO.UK,Southwell Tr admin & ops,Other Equipment And Tools,130.05,156.06,0,26.01,0,20
21/01/2015,EC MAINLINE CO INT,Central Personnel Expenses,Training Expenses,166.9,166.9,0,0,0,0
21/01/2015,Trainline.com,Housing Options,Training Expenses,48.96,48.96,0,0,0,0
22/01/2015,J P LENNARD LTD,Grove Leisure Centre,Planned Maintenance - Grove,110.3,132.36,0,22.06,0,20
22/01/2015,EAST MIDLANDS TRAI,National Civil War Centre,Travel And Subsistence,6.2,6.2,0,0,0,0
22/01/2015,CJ WILDBIRD FOODS,Sconce & Devon Park,Contractual Services,22.65,22.65,0,0,0,0
22/01/2015,SMUGMUG ONLINE PHOTOS,Sconce & Devon Park,Contractual Services,65,65,0,0,0.09,0
22/01/2015,Amazon  Mktplce EU-UK,Dukeries Leisure Centre,Other Equipment And Tools,50.17,60.2,0,10.03,0,20
22/01/2015,WWW.BAGA.CO.UK,Southwell Tr admin & ops,Training Expenses,349.17,419,0,69.83,0,20
22/01/2015,EC MAINLINE CO INT,Financial Services,Travel And Subsistence,86.3,86.3,0,0,0,0
22/01/2015,FARMSTAR LTD,Grounds Maintenance,Clothing And Uniforms,48,48,0,0,0,0
22/01/2015,FARMSTAR LTD,Grounds Maintenance,Clothing And Uniforms,12.68,15.21,0,2.53,0,20
22/01/2015,WM MORRISON 048,Env Health Proactive,Catering Equipment,1.54,1.59,0,0.05,0,0
22/01/2015,WM MORRISON 048,Env Health Proactive,Catering Equipment,6.83,7.04,0,0.21,0,0
23/01/2015,DVSA,Vehicle Pool Workshop,Materials,410,410,0,0,0,0
23/01/2015,CIEH LIMITED,Members Expenses,Training Expenses,49,49,0,0,0,0
23/01/2015,Amazon  Mktplce EU-UK,Blidworth Leisure Centre,Other Equipment And Tools,43.69,52.43,0,8.74,0,20
23/01/2015,WM MORRISON 048,Env Health Proactive,Catering Equipment,17.94,17.94,0,0,0,0
22/01/2015,ARCO LTD,Car Parks & Markets Admin,Clothing And Uniforms,192.25,230.7,0,38.45,0,0
26/01/2015,EC MAINLINE CO INT,Ict,Travel And Subsistence,185.6,185.6,0,0,0,0
26/01/2015,East Midlands,Customer Services,Travel And Subsistence,140,140,0,0,0,0
27/01/2015,PAYPAL  DAVIDMCC,National Civil War Centre,Education & Outreach,12,12,0,0,0,0
27/01/2015,PAYPAL  MATJANESKNB,National Civil War Centre,Education & Outreach,32.99,32.99,0,0,0,0
27/01/2015,HAWES & CURTIS,National Civil War Centre,Clothing And Uniforms,200,200,0,0,0,0
27/01/2015,WATER AT WORK,Blidworth Leisure Centre,Equipment For Resale,70,84,0,14,0,20
27/01/2015,MAILCHIMP,Palace Theatre,Advertising,43.56,43.56,0,0,0.08,0
27/01/2015,WWW.TNTDIRECT.COM,Licensing Admin,Postages,39.48,39.48,0,0,0,0
27/01/2015,Cross Country,Administration Services,Travel And Subsistence,92,92,0,0,0,0
28/01/2015,SAFESCAN B.V.,National Civil War Centre,Other Equipment And Tools,168.09,201.71,0,33.62,0,20
28/01/2015,WILKO RETAIL LIMIT,Central Personnel Expenses,Internal Training,17.33,20.8,0,3.47,0,20
28/01/2015,EC MAINLINE CO INT,Building Control,Travel And Subsistence,1,1,0,0,0,0
28/01/2015,BRITISH AMATEUR GYMN A,Southwell Tr admin & ops,Training Expenses,349.17,419,0,69.83,0,20
28/01/2015,EC MAINLINE CO INT,Legal Section,Travel And Subsistence,168.6,168.6,0,0,0,0
28/01/2015,DISCOUNT DISPLAYS LTD,Economic Development Unit,Inward investment,133.8,133.8,0,0,0,0
29/01/2015,WWW.ZSIG.COM,Culture & Leisure Grant Funding,Contractual Services,178.5,214.2,0,35.7,0,20
29/01/2015,WWW.BISHOPSPORTS.CO.UK,Culture & Leisure Grant Funding,Contractual Services,367.5,441,0,73.5,0,20
29/01/2015,WWW.TEMS.CO.UK,Sports Development,Parish Cncls And Vol Bodies,86.29,102.95,0,16.66,0,0
29/01/2015,GASP,Sports Development,Parish Cncls And Vol Bodies,137.5,165,0,27.5,0,20
29/01/2015,WWW.THEFPA.CO.UK,Risk Management,Publications,45.5,45.5,0,0,0,0
29/01/2015,PAYPAL  SMARTCARD,Licensing Admin,Office Equipment Purchase,65.94,65.94,0,0,0,0
29/01/2015,DVLA DUP REG DOC,Vehicle Pool Nsh,Licences & M.O.T.'S,25,25,0,0,0,0
30/01/2015,HAWES & CURTIS,National Civil War Centre,Clothing And Uniforms,75,75,0,0,0,0
31/01/2015,EB  BIG DRAW TRAINING,Arts Development,Parish Cncls And Vol Bodies,40,40,0,0,0,0
29/01/2015,SPORTSDIRECT.COM,Culture & Leisure Grant Funding,Contractual Services,219.7,263.64,0,43.94,0,20
30/01/2015,Trainline.com,Legal Section,Travel And Subsistence,16.68,16.68,0,0,0,0
30/01/2015,WAITROSE 227,Civic Expenses,Allowance,22.35,22.35,0,0,0,0
29/01/2015,PREMIER TRAVEL INN,Central Personnel Expenses,Internal Training,236.67,284,0,47.33,0,20
02/02/2015,ASDA  STORES 4201,National Civil War Centre,Materials,13.48,13.48,0,0,0,0
02/02/2015,DISCLOSURE & BARRING,Leisure Centres,Professional Services,13,13,0,0,0,0
02/02/2015,TIGER HIRE,Street Sweeping,Materials,120,144,0,24,0,20
02/02/2015,BOOKER LIMITED MANSFIE,Southwell Tr admin & ops,Meals,71.71,71.71,0,0,0,0
02/02/2015,CO-OP GROUP 017957,Southwell Tr admin & ops,Meals,13,13,0,0,0,0
02/02/2015,PARCEL2GO,Ict,Travel And Subsistence,68.7,68.7,0,0,0,0
03/02/2015,CELEXON UK LIMITED,Southwell Tr admin & ops,Office Equipment Purchase,70.82,84.98,0,14.16,0,20
03/02/2015,FOOD SAFETY DIRECT,Env Health Proactive,Office Equipment Purchase,37.5,45,0,7.5,0,20
03/02/2015,CO-OP GROUP 019361,Southwell Tr admin & ops,Meals,5.07,5.07,0,0,0,0
03/02/2015,SOUTH LINCS CLOTHING,Car Parks & Markets Admin,Clothing And Uniforms,29.16,34.99,0,5.83,0,20
03/02/2015,WWW.STAPLES.CO.UK,Corporate Property,Office Equipment Purchase,8.08,9.7,0,1.62,0,20
03/02/2015,East Midlands,Cctv,Travel And Subsistence,24.6,24.6,0,0,0,0
03/02/2015,East Midlands,Income,Travel And Subsistence,56.5,56.5,0,0,0,0
04/02/2015,DEINCOURT HOTEL,Housing Options,Bed And Breakfast,113,113,0,0,0,0
04/02/2015,WORLDSTORES LTD,Building Services,Furniture And Fittings,121,145.2,0,24.2,0,20
05/02/2015,NEXT DIRECTORY,National Civil War Centre,Advertising,158.33,190,0,31.67,0,20
04/02/2015,ARMOUR CLASS,National Civil War Centre,Contractual Services,116.67,140,0,23.33,0,20
05/02/2015,WWW.DIRECTSOCCER.CO.UK,Leisure Centres,Other Equipment And Tools,264.36,317.23,0,52.87,0,20
05/02/2015,East Midlands,Financial Services,Travel And Subsistence,107,107,0,0,0,0
05/02/2015,OYSTER AUTOTOPUP,Aggregated Budgets,Travel And Subsistence,20,20,0,0,0,0
05/02/2015,RIBA,Central Personnel Expenses,Internal Training,60,60,0,0,0,0
05/02/2015,EC MAINLINE CO INT,Corporate Management Team,Travel And Subsistence,111.25,111.25,0,0,0,0
05/02/2015,WM MORRISON 048,Env Health Proactive,Catering Equipment,9.5,9.5,0,0,0,0
06/02/2015,SCREWFIX DIRECT,Grounds Maintenance,Materials,82.62,99.14,0,16.52,0,20
06/02/2015,O.C.T. MOTORHOMES,Street Sweeping,Materials,102,122.4,0,20.4,0,20
05/02/2015,DERWENT LTD,Southwell Tr admin & ops,Cleaning Materials,11.8,11.8,0,0,0,0
06/02/2015,W A BARNES LLP,Housing Options,Prevention Fund,866.67,1040,0,173.33,0,20
06/02/2015,BRITISH GAS BUSINE,National Civil War Centre,Materials,450,540,0,90,0,20
09/02/2015,POWERHOUSE,Blidworth Leisure Centre,Other Equipment And Tools,24.17,29,0,4.83,0,20
09/02/2015,WWW.NEXTDAYCOFFEE.CO.U,Sports Development,Parish Cncls And Vol Bodies,61.91,62.51,0,0.6,0,0
09/02/2015,EAST MIDLANDS TRAI,Culture & Leisure Grant Funding,Travel And Subsistence,12.8,12.8,0,0,0,0
09/02/2015,WWW.DIRECTSOCCER.CO.UK,Grove Leisure Centre,Other Equipment And Tools,122.29,146.75,0,24.46,0,20
10/02/2015,SCREWFIX DIRECT,Brunel Drive Depot,Materials,49.97,59.97,0,10,0,20
10/02/2015,B & Q,Southwell Tr admin & ops,Repairs And Maintenance,44.58,53.5,0,8.92,0,20
09/02/2015,BT BILL PAYMENT 1,Cctv,Telephones,123,147.6,0,24.6,0,20
10/02/2015,WM MORRISON 048,Civic Expenses,Allowance,23.98,23.98,0,0,0,0
10/02/2015,WWW.GOV.UK,Housing Benefit Admin,Printing,10,10,0,0,0,0
11/02/2015,FARMSTAR LTD,Grounds Maintenance,Materials,4.78,5.74,0,0.96,0,20
11/02/2015,WWW.BOUNDTREE.CO.U,Cctv,Cctv Operation,35.9,43.08,0,7.18,0,20
11/02/2015,EC MAINLINE CO INT,Financial Services,Travel And Subsistence,113.6,113.6,0,0,0,0
12/02/2015,WWW.DVLA.GOV.UK,Vehicle Pool Nsh,Licences & M.O.T.'S,227.5,227.5,0,0,0,0
12/02/2015,WWW.DVLA.GOV.UK,Vehicle Pool Nsh,Licences & M.O.T.'S,227.5,227.5,0,0,0,0
12/02/2015,WWW.DVLA.GOV.UK,Vehicle Pool Nsh,Licences & M.O.T.'S,227.5,227.5,0,0,0,0
12/02/2015,WWW.DVLA.GOV.UK,Refuse Collection,Licences & M.O.T.'S,167.5,167.5,0,0,0,0
12/02/2015,WWW.DVLA.GOV.UK,Vehicle Pool Nsh,Licences & M.O.T.'S,227.5,227.5,0,0,0,0
12/02/2015,WWW.DVLA.GOV.UK,Vehicle Pool Nsh,Licences & M.O.T.'S,227.5,227.5,0,0,0,0
12/02/2015,WWW.DVLA.GOV.UK,Vehicle Pool Nsh,Licences & M.O.T.'S,227.5,227.5,0,0,0,0
12/02/2015,TESCO STORES 2995,Grove Leisure Centre,Other Equipment And Tools,28.38,28.38,0,0,0,0
12/02/2015,Trainline.com,Central Personnel Expenses,Internal Training,184.11,184.11,0,0,0,0
12/02/2015,FARMSTAR LTD,Grounds Maintenance,Other Equipment And Tools,16.84,20.21,0,3.37,0,20
12/02/2015,WWW.ODDBALLS.CO.UK,Arts Development,Parish Cncls And Vol Bodies,37.5,45,0,7.5,0,20
12/02/2015,COMPLETE CARE,Sports Development,Parish Cncls And Vol Bodies,8.95,9.94,0,0.99,0,0
12/02/2015,DOLPHINFITNESS.CO.,Blidworth Leisure Centre,Equipment For Resale,68.83,82.6,0,13.77,0,20
12/02/2015,EC MAINLINE CO INT,Communications & Cust Services,Travel And Subsistence,12.6,12.6,0,0,0,0
13/02/2015,ARMOUR CLASS,National Civil War Centre,Contractual Services,224.17,269,0,44.83,0,20
13/02/2015,EC MAINLINE CO INT,Area Planning,Travel And Subsistence,13.3,13.3,0,0,0,0
14/02/2015,EB  BIG DRAW TRAINING,Arts Development,Parish Cncls And Vol Bodies,-40,-40,0,0,0,0
13/02/2015,EC MAINLINE CO T/O,Corporate Management Team,Travel And Subsistence,103,103,0,0,0,0
16/02/2015,TLC SOUTHERN,Sherwood Forest Craft Centre,Repairs And Maintenance,30.9,37.08,0,6.18,0,20
16/02/2015,East Midlands,National Civil War Centre,Advertising,25.6,25.6,0,0,0,0
16/02/2015,FARMSTAR LTD,Grounds Maintenance,Materials,30.82,36.98,0,6.16,0,20
16/02/2015,CO-OP GROUP 017957,Southwell Tr admin & ops,Miscellaneous Expenses,11.29,11.29,0,0,0,0
16/02/2015,LLOYDS PHARMACY,Dukeries Leisure Centre,Other Equipment And Tools,21.46,25.75,0,4.29,0,20
16/02/2015,WWW.PLASTIC-ID.COM,Licensing Admin,Office Equipment Purchase,36.5,43.8,0,7.3,0,20
17/02/2015,EB  GEM EAST MIDLANDS,National Civil War Centre,Materials,5,5,0,0,0,0
17/02/2015,DISCLOSURE & BARRING,Leisure Centres,Professional Services,13,13,0,0,0,0
17/02/2015,WWW.OFFICEREALITY.CO.U,Refuse Collection,Other Equipment And Tools,128,153.6,0,25.6,0,20
17/02/2015,Norton  NP232982214,Cctv,Other Equipment Maintenance,45.82,54.99,0,9.17,0,20
17/02/2015,WWW.PLASTIC-ID.COM,Licensing Admin,Office Equipment Purchase,21.5,25.8,0,4.3,0,20
18/02/2015,ASDA  STORES 4201,National Civil War Centre,Materials,13.62,13.62,0,0,0,0
18/02/2015,COMPANIES HOUSE,Env Health Proactive,Professional Services,3,3,0,0,0,0
18/02/2015,TANVIC TYRES - RETAIL,Grove Leisure Centre,Other Equipment And Tools,75,90,0,15,0,20
18/02/2015,B & Q,Southwell Tr admin & ops,Repairs And Maintenance,32.96,39.55,0,6.59,0,20
17/02/2015,EBUYER (UK) LTD,Community Safety Partnership,Stationery,26.57,31.89,0,5.32,0,20
17/02/2015,ARCO LTD,Risk Management,Office Equipment Purchase,175.32,210.38,0,35.06,0,0
18/02/2015,EC MAINLINE CO INT,Sherwood Heath Tic,Travel And Subsistence,113.16,113.16,0,0,0,0
18/02/2015,EC MAINLINE CO INT,Newark Tic,Travel And Subsistence,56.59,56.59,0,0,0,0
18/02/2015,TOTAL CLEANING SUP,Cashiers,Materials,63.82,76.58,0,12.76,0,20
18/02/2015,WWW.POPPYSHOP.ORG.UK,Civic Expenses,Allowance,18.7,22.44,0,3.74,0,20
19/02/2015,HAWES & CURTIS,National Civil War Centre,Clothing And Uniforms,-75,-75,0,0,0,0
19/02/2015,HAWES & CURTIS,National Civil War Centre,Clothing And Uniforms,-80,-80,0,0,0,0
19/02/2015,"Amazon Svcs Europe,SAR",Blidworth Leisure Centre,Other Equipment And Tools,44.73,53.68,0,8.95,0,20
19/02/2015,LINCOLN OFFICE FURNITU,Building Services,Furniture And Fittings,228,273.6,0,45.6,0,20
19/02/2015,WWW.MEMORYBITS.CO.UK,Community Safety Partnership,Contractual Services,19.65,19.65,0,0,0,0
19/02/2015,East Midlands,Financial Services,Travel And Subsistence,18.2,18.2,0,0,0,0
19/02/2015,WWW.MAPLIN.CO.UK,Ict,Hardware Maintenance,14.52,14.52,0,0,0,0
19/02/2015,WM MORRISON 048,Env Health Proactive,Catering Equipment,1.32,1.58,0,0.26,0,20
19/02/2015,WM MORRISON 048,Env Health Proactive,Catering Equipment,22.02,22.02,0,0,0,0
20/02/2015,WWW.OFFICEFURNITUREONL,Building Services,Furniture And Fittings,151,181.2,0,30.2,0,20
20/02/2015,Amazon UK Marketplace,Blidworth Leisure Centre,Other Equipment And Tools,27.42,32.9,0,5.48,0,20
20/02/2015,A B WASTE DISPOSAL LTD,Blidworth Leisure Centre,Other Equipment And Tools,83.33,100,0,16.67,0,20
20/02/2015,WILKO RETAIL LIMIT,Cashiers,Office Equipment Purchase,3.75,4.5,0,0.75,0,20
20/02/2015,WM MORRISON 048,Env Health Proactive,Catering Equipment,4.01,4.81,0,0.8,0,20
20/02/2015,WM MORRISON 048,Env Health Proactive,Catering Equipment,15.5,15.5,0,0,0,0
23/02/2015,NATIONAL PORTRAIT,National Civil War Centre,Advertising,652.5,783,0,130.5,0,20
23/02/2015,EC MAINLINE CO INT,Corporate Management Team,Travel And Subsistence,206,206,0,0,0,0
23/02/2015,WAITROSE 227,Emergency Planning,Contractual Services,2.39,2.39,0,0,0,0
18/02/2015,ARCO LTD,Risk Management,Office Equipment Purchase,14.42,17.3,0,2.88,0,0
23/02/2015,EC MAINLINE CO INT,Financial Services,Travel And Subsistence,201.4,201.4,0,0,0,0
24/02/2015,WWW.OFFICEXPRESS.CO.UK,Vehicle Pool Workshop,Materials,65.98,79.18,0,13.2,0,20
24/02/2015,B&Q,Refuse Collection,Office Equipment Purchase,47.44,56.93,0,9.49,0,20
24/02/2015,PAYPAL  SAUNATEC,Dukeries Leisure Centre,Repairs And Maintenance,176.33,211.6,0,35.27,0,20
24/02/2015,WWW.WILDBIRDDIRECT.COM,Vicar Water Park,Repairs And Maintenance,13.79,13.79,0,0,0,0
24/02/2015,EC MAINLINE CO INT,Area Planning,Travel And Subsistence,25.8,25.8,0,0,0,0
24/02/2015,NCP LIMITED,Corporate Management Team,Travel And Subsistence,11.5,11.5,0,0,0,0
24/02/2015,TESCO STORES 5379,Emergency Planning,Contractual Services,224.08,224.08,0,0,0,0
24/02/2015,"Amazon Svcs Europe,SAR",Economic Development Unit,Employment & skills,5.2,5.2,0,0,0,0
25/02/2015,East Midlands,Strategic Hsg (Was Community),Travel And Subsistence,57.6,57.6,0,0,0,0
25/02/2015,EC MAINLINE CO INT,Central Personnel Expenses,Internal Training,90.2,90.2,0,0,0,0
25/02/2015,EC MAINLINE CO INT,Corporate Management Team,Travel And Subsistence,88.2,88.2,0,0,0,0
25/02/2015,EC MAINLINE CO INT,Corporate Management Team,Travel And Subsistence,257.7,257.7,0,0,0,0
25/02/2015,EC MAINLINE CO INT,Financial Services,Travel And Subsistence,-102.6,-102.6,0,0,0,0
25/02/2015,WM MORRISON 048,Env Health Proactive,Catering Equipment,36.26,36.26,0,0,0,0
26/02/2015,UNIVERSITY OF YORK,Central Personnel Expenses,Internal Training,190,190,0,0,0,0
26/02/2015,FARMSTAR LTD,Grounds Maintenance,Other Equipment And Tools,41.4,49.68,0,8.28,0,20
26/02/2015,POUNDSTRETCHER 569,Refuse Collection,Materials,11.65,13.98,0,2.33,0,20
26/02/2015,OYSTER AUTOTOPUP,Aggregated Budgets,Travel And Subsistence,20,20,0,0,0,0
26/02/2015,"Amazon Svcs Europe,SAR",Leisure Centres,Clothing And Uniforms,23.33,28,0,4.67,0,20
26/02/2015,DOLPHINFITNESS.CO.,Blidworth Leisure Centre,Equipment For Resale,136.52,163.82,0,27.3,0,20
26/02/2015,WM MORRISON 048,Env Health Proactive,Catering Equipment,8.48,8.48,0,0,0,0
27/02/2015,PERFECT ASSOCIATES,Dukeries Leisure Centre,Repairs And Maintenance,267.33,320.8,0,53.47,0,20
27/02/2015,WWW.REAGENT.CO.UK,Resource Centre. Museums,Materials,-63.53,-63.53,0,0,0,0
27/02/2015,SPECSAVERS CORP EVOUCH,Personnel Section,Medicals Other Staff,170,170,0,0,0,0
26/02/2015,ARCO LTD,Building Control,Clothing And Uniforms,102.6,123.12,0,20.52,0,0
27/02/2015,Kitbag Ltd,Grove Leisure Centre,Equipment For Resale,333.33,400,0,66.67,0,20
27/02/2015,MARK HARROD LTD,Grove Leisure Centre,Other Equipment And Tools,541.67,650,0,108.33,0,20
27/02/2015,NCP LIMITED,Corporate Management Team,Travel And Subsistence,11.5,11.5,0,0,0,0
25/02/2015,ARCO LTD,Risk Management,Office Equipment Purchase,32.07,38.48,0,6.41,0,0
28/02/2015,FACEBOOK 8FVTA72S52,Palace Theatre,Recharge To Tp Marketing,130.11,130.11,0,0,0,0
27/02/2015,EC MAINLINE CO INT,Energy Services,Travel And Subsistence,155,155,0,0,0,0
27/02/2015,MAILCHIMP,Palace Theatre,Advertising,42.51,42.51,0,0,0.08,0
27/02/2015,"Amazon Svcs Europe,SAR",Leisure Centres,Clothing And Uniforms,83.32,99.99,0,16.67,0,20
28/02/2015,Amazon UK Retail,Communications & Cust Services,Corporate Communication,38.69,38.69,0,0,0,0
02/03/2015,SCREWFIX DIRECT,Street Sweeping,Other Equipment And Tools,12.61,15.13,0,2.52,0,20
02/03/2015,WWW.JOHNLEWIS.COM,Other Properties,Advertising,291.62,349.95,0,58.33,0,20
02/03/2015,WWW.FOAMS4SPORTS.CO.UK,Sports Development,Parish Cncls And Vol Bodies,46.26,46.26,0,0,0,0
02/03/2015,WWW.BISHOPSPORTS.CO.UK,Sports Development,Parish Cncls And Vol Bodies,57.94,69.53,0,11.59,0,20
02/03/2015,WWW.NEWITTS.COM,Sports Development,Parish Cncls And Vol Bodies,11.87,14.25,0,2.38,0,20
02/03/2015,ROYAL MAIL,Sherwood Heath Tic,Items For Resale,482.4,482.4,0,0,0,0
03/03/2015,HOME BARGAINS NEWARK,Housing Options,Gov Grant Expenditure,19.41,19.41,0,0,0,0
03/03/2015,B&M Retail,Housing Options,Gov Grant Expenditure,84.28,84.28,0,0,0,0
03/03/2015,NEWARK NORTHGATE RAIL,Legal Section,Travel And Subsistence,11,11,0,0,0,0
03/03/2015,BLOOMSBURY PUBLISH,Legal Section,Publications,101.95,101.95,0,0,0,0
03/03/2015,CO-OP GROUP 017957,Southwell Tr admin & ops,Meals,10,10,0,0,0,0
03/03/2015,WWW.OFCOM.ORG.UK,Cctv,Cctv Operation,75,75,0,0,0,0
03/03/2015,AMOMA.COM,Housing Options,Travel And Subsistence,135.95,135.95,0,0,0,0
03/03/2015,NEWARK NORTHGATE RAIL,Legal Section,Travel And Subsistence,11,11,0,0,0,0
03/03/2015,WM MORRISON 048,Env Health Proactive,Catering Equipment,9.24,9.24,0,0,0,0
04/03/2015,"Amazon Svcs Europe,SAR",Other Properties,Advertising,10.74,12.89,0,2.15,0,20
04/03/2015,WWW.POWERTOOLWORLD.CO.,Corporate Property,Other Equipment And Tools,104.96,125.95,0,20.99,0,20
04/03/2015,WWW.POWERTOOLWORLD.CO.,Other Properties,Advertising,104.96,125.95,0,20.99,0,20
04/03/2015,"Amazon Svcs Europe,SAR",Other Properties,Advertising,31.78,31.78,0,0,0,0
04/03/2015,B&M Retail,Housing Options,Gov Grant Expenditure,50.82,50.82,0,0,0,0
04/03/2015,WWW.AVANTAUK.COM,Vicar Water Park,Contractual Services,78.19,93.83,0,15.64,0,20
04/03/2015,PAPERSTONE,Cashiers,Materials,38.9,46.68,0,7.78,0,20
05/03/2015,Amazon UK Retail,Communications & Cust Services,Corporate Communication,62.33,74.76,0,12.43,0,0
04/03/2015,"Amazon Svcs Europe,SAR",Communications & Cust Services,Corporate Communication,636,636,0,0,0,0
04/03/2015,"Amazon Svcs Europe,SAR",Communications & Cust Services,Corporate Communication,39.98,41.97,0,1.99,0,0
04/03/2015,WM MORRISON 048,Env Health Proactive,Catering Equipment,12.77,12.77,0,0,0,0
04/03/2015,WILKO RETAIL LIMIT,Env Health Proactive,Catering Equipment,13.02,13.02,0,0,0,0
05/03/2015,CHEAPSUITES,Dukeries Leisure Centre,Repairs And Maintenance,444.16,532.99,0,88.83,0,20
05/03/2015,WORLDBOOKSL,National Civil War Centre,Publications,10.47,10.47,0,0,0,0
05/03/2015,WWW.POSTURITE.CO.UK,Risk Management,Office Equipment Purchase,53.95,64.74,0,10.79,0,20
05/03/2015,PAPERSTONE,Cashiers,Materials,11.53,13.84,0,2.31,0,20
05/03/2015,Amazon UK Marketplace,Communications & Cust Services,Tenant Inspector Initiatives,197,197,0,0,0,0
06/03/2015,NEWARK SELF DRIVE HIRE,Southwell Tr admin & ops,Car Allowances,70,84,0,14,0,20
06/03/2015,VIRGIN MEDIA PYMTS,Vicar Water Park,Contractual Services,36,36,0,0,0,0
06/03/2015,VIRGIN MEDIA PYMTS,Vicar Water Park,Contractual Services,59.98,59.98,0,0,0,0
06/03/2015,JOHN E WRIGHT,Area Planning,Ordnance Survey Extracts,247.75,297.3,0,49.55,0,20
06/03/2015,"Amazon Svcs Europe,SAR",Blidworth Leisure Centre,Other Equipment And Tools,422.46,506.95,0,84.49,0,20
06/03/2015,WWW.JORDANFITNESS.CO.U,Blidworth Leisure Centre,Other Equipment And Tools,408.51,490.21,0,81.7,0,20
06/03/2015,VIRGINTRAINSEC SERVCS,Newark Open Market,Repairs And Maintenance,128.33,154,0,25.67,0,20
06/03/2015,OYSTER AUTOTOPUP,Aggregated Budgets,Travel And Subsistence,20,20,0,0,0,0
09/03/2015,WWW.DVLA.GOV.UK,Street Sweeping,Licences & M.O.T.'S,227.5,227.5,0,0,0,0
09/03/2015,CHEAPSUITES,Kelham Hall,Repairs And Maintenance,66.67,80,0,13.33,0,20
09/03/2015,WWW.MYTUB.CO.UK,Kelham Hall,Repairs And Maintenance,1455.85,1747.02,0,291.17,0,20
09/03/2015,CHEAPSUITES,Dukeries Leisure Centre,Repairs And Maintenance,16.67,20,0,3.33,0,20
09/03/2015,CHEAPSUITES,Kelham Hall,Repairs And Maintenance,208.33,250,0,41.67,0,20
09/03/2015,ASDA  STORES 4201,Resource Centre. Museums,Travel And Subsistence,1.25,1.5,0,0.25,0,20
09/03/2015,ASDA  STORES 4201,Resource Centre. Museums,Travel And Subsistence,13.76,13.76,0,0,0,0
09/03/2015,WORLDBOOKSL,National Civil War Centre,Other Equipment And Tools,43.07,43.07,0,0,0,0
09/03/2015,PEN AND SWORD BOOK,National Civil War Centre,Publications,14.99,14.99,0,0,0,0
09/03/2015,VICTORIA STREET,Resource Centre. Museums,Travel And Subsistence,3.96,4.75,0,0.79,0,20
09/03/2015,WWW.UKPACKAGING.COM,National Civil War Centre,Other Equipment And Tools,133.5,160.2,0,26.7,0,20
09/03/2015,WWW.TIGERPENS.CO.UK,National Civil War Centre,Materials,70.45,84.54,0,14.09,0,20
09/03/2015,ARGOS LTD,Housing Options,Gov Grant Expenditure,113.44,113.44,0,0,0,0
09/03/2015,ARGOS LTD,Housing Options,Gov Grant Expenditure,243.06,243.06,0,0,0,0
09/03/2015,ARGOS LTD,Housing Options,Gov Grant Expenditure,108.93,108.93,0,0,0,0
10/03/2015,ARGOS RETAIL GROUP,Dukeries Leisure Centre,Repairs And Maintenance,240.78,288.94,0,48.16,0,20
10/03/2015,PRESERVATION EQUIP,National Civil War Centre,Materials,231.18,277.42,0,46.24,0,20
10/03/2015,NOTTINGHAM OFFICE EQUI,Housing Options,Gov Grant Expenditure,175,210,0,35,0,20
10/03/2015,VIRGINTRAINSEC SERVCS,Area Planning,Travel And Subsistence,57.9,57.9,0,0,0,0
10/03/2015,WWW.CONNEVANS.COM,Grove Leisure Centre,Other Equipment And Tools,57.12,68.54,0,11.42,0,20
10/03/2015,WWW.CONNEVANS.COM,Grove Leisure Centre,Other Equipment And Tools,101.18,121.42,0,20.24,0,20
10/03/2015,LINCOLN OFFICE FURNITU,Building Services,Furniture And Fittings,1180,1416,0,236,0,20
10/03/2015,BT BILL PAYMENT 2,Cctv,Telephones,81.65,97.98,0,16.33,0,20
10/03/2015,Cross Country,Licensing Admin,Travel And Subsistence,21.9,21.9,0,0,0,0
11/03/2015,WATERMILL INTERIORS LT,Kelham Hall,Repairs And Maintenance,570.66,684.79,0,114.13,0,20
10/03/2015,DOVETAIL LTD GBP,Corporate Property,Publications,57,68.4,0,11.4,0,20
10/03/2015,THE NADLER LIVERPOOL D,Economic Development Unit,Travel And Subsistence,77.25,92.7,0,15.45,0,20
12/03/2015,WORLDSTORES LTD,Building Services,Furniture And Fittings,230,276,0,46,0,20
11/03/2015,"Amazon Svcs Europe,SAR",Communications & Cust Services,Corporate Communication,18.29,21.95,0,3.66,0,20
11/03/2015,WM MORRISON 048,Env Health Proactive,Catering Equipment,2.65,3.18,0,0.53,0,20
11/03/2015,WM MORRISON 048,Env Health Proactive,Catering Equipment,22.58,22.58,0,0,0,0
12/03/2015,"Amazon Svcs Europe,SAR",Corporate Property,Other Equipment And Tools,10.74,12.89,0,2.15,0,20
12/03/2015,DISCLOSURE & BARRING,Leisure Centres,Professional Services,13,13,0,0,0,0
12/03/2015,TILLROLLSDIRECT.CO,Cashiers,Materials,111.25,133.5,0,22.25,0,20
12/03/2015,"Amazon Svcs Europe,SAR",Communications & Cust Services,Corporate Communication,6.56,7.87,0,1.31,0,20
12/03/2015,Amazon UK Retail,Communications & Cust Services,Corporate Communication,28.1,33.72,0,5.62,0,20
12/03/2015,INSTITUTELI,Licensing Admin,Subscriptions,250,250,0,0,0,0
13/03/2015,PAYPAL  SAUNATEC,Dukeries Leisure Centre,Repairs And Maintenance,62.33,74.8,0,12.47,0,20
15/03/2015,TWO J'S,National Civil War Centre,Contractual Services,25,30,0,5,0,20
15/03/2015,TWO J'S,National Civil War Centre,Contractual Services,34.17,41,0,6.83,0,20
13/03/2015,BRITISH STANDARDS,Env Health Reactive,Other Equipment Maintenance,109,130.8,0,21.8,0,20
13/03/2015,SIGNWORLD SCREEN P,Housing Options,Gov Grant Expenditure,34.95,41.94,0,6.99,0,20
14/03/2015,"Amazon Svcs Europe,SAR",Surface Car Parks Newark,Repairs And Maintenance,58.95,70.74,0,11.79,0,20
13/03/2015,"Amazon Svcs Europe,SAR",Car Parks & Markets Admin,Clothing And Uniforms,22.82,27.39,0,4.57,0,20
13/03/2015,WWW.JOHNLEWIS.COM,Corporate Property,Other Equipment And Tools,291.62,349.95,0,58.33,0,20
15/03/2015,Amazon UK Retail,Ict,Departmental Hardware,54.33,65.2,0,10.87,0,20
16/03/2015,DISCLOSURE & BARRING,Leisure Centres,Professional Services,13,13,0,0,0,0
16/03/2015,THE POST OFFICE,Southwell Tr admin & ops,Postages,31.13,37.36,0,6.23,0,20
16/03/2015,East Midlands,Policy & Commissioning,Travel And Subsistence,113.5,113.5,0,0,0,0
17/03/2015,ALLWOODS DISCOUNT STOR,Grove Leisure Centre,Repairs And Maintenance,53.42,64.1,0,10.68,0,20
17/03/2015,WWW.STAPLES.CO.UK,Housing Options,Gov Grant Expenditure,59.98,59.98,0,0,0,0
17/03/2015,VIRGINTRAINSEC SERVCS,Planning Support,Travel And Subsistence,207.8,207.8,0,0,0,0
17/03/2015,WWW.LABC.UK.COM,Central Personnel Expenses,Internal Training,150,180,0,30,0,20
17/03/2015,DERWENT LTD,Southwell Tr admin & ops,Cleaning Materials,12.96,15.55,0,2.59,0,20
17/03/2015,XMA LTD,Newark Tic,Stationery,58.4,70.08,0,11.68,0,0
17/03/2015,WM MORRISON 048,Env Health Proactive,Catering Equipment,1.67,2,0,0.33,0,20
17/03/2015,WM MORRISON 048,Env Health Proactive,Catering Equipment,20.91,20.91,0,0,0,0
17/03/2015,Amazon UK Marketplace,Env Health Proactive,Catering Equipment,11.65,13.98,0,2.33,0,20
18/03/2015,SCREWFIX DIRECT,Southwell Tr admin & ops,Repairs And Maintenance,249.97,299.97,0,50,0,20
18/03/2015,B & Q,Southwell Tr admin & ops,Repairs And Maintenance,83.29,99.95,0,16.66,0,20
18/03/2015,Amazon UK Retail,Car Parks & Markets Admin,Clothing And Uniforms,14.17,17,0,2.83,0,20
18/03/2015,"Amazon Svcs Europe,SAR",Surface Car Parks Newark,Repairs And Maintenance,20.05,24.06,0,4.01,0,20
17/03/2015,ARCO LTD,Car Parks & Markets Admin,Clothing And Uniforms,211.57,253.88,0,42.31,0,0
18/03/2015,TOPPS TILES PLC,Kelham Hall,Repairs And Maintenance,664.35,797.22,0,132.87,0,20
18/03/2015,123-REG.CO.UK,Leisure Centres,Printing,90.92,109.1,0,18.18,0,20
18/03/2015,East Midlands,Licensing Admin,Travel And Subsistence,7,7,0,0,0,0
18/03/2015,WM MORRISON 048,Env Health Proactive,Catering Equipment,7.93,7.93,0,0,0,0
19/03/2015,WWW.ISTOCK.COM,National Civil War Centre,Education & Outreach,7,8.4,0,1.4,0,20
19/03/2015,OSBORNES NEWARK,Surface Car Parks Newark,Repairs And Maintenance,33.31,39.97,0,6.66,0,20
19/03/2015,"Amazon Svcs Europe,SAR",Surface Car Parks Newark,Repairs And Maintenance,111.42,133.7,0,22.28,0,20
19/03/2015,"Amazon Svcs Europe,SAR",Other Properties,Advertising,56.14,67.37,0,11.23,0,20
19/03/2015,OYSTER AUTOTOPUP,Aggregated Budgets,Travel And Subsistence,20,20,0,0,0,0
19/03/2015,WM MORRISON 048,Env Health Proactive,Catering Equipment,27.2,27.2,0,0,0,0
20/03/2015,WWW.CARTRIDGESAVE.CO.U,Southwell Tr admin & ops,Printing,94.79,113.75,0,18.96,0,20
20/03/2015,PAYPAL  LETTERSMARQ,National Civil War Centre,Education & Outreach,37.17,44.6,0,7.43,0,20
20/03/2015,WWW.WORKWEAREXPRESS.CO,National Civil War Centre,Clothing And Uniforms,125.34,150.41,0,25.07,0,20
20/03/2015,MOLE COUNTRY STORES,Sconce & Devon Park,Contractual Services,209.75,251.7,0,41.95,0,20
22/03/2015,ASDA HOME SHOPPING,Dukeries Leisure Centre,Other Equipment And Tools,78.18,78.18,0,0,0,0
22/03/2015,ASDA HOME SHOPPING,Grove Leisure Centre,Other Equipment And Tools,70.56,70.56,0,0,0,0
22/03/2015,ASDA HOME SHOPPING,Southwell Tr admin & ops,Other Equipment And Tools,72.32,72.32,0,0,0,0
22/03/2015,SAINSBURYS TO YOU 0816,Blidworth Leisure Centre,Other Equipment And Tools,68.01,68.01,0,0,0,0
20/03/2015,Severn Tren Water,Renovation of NCWC,Contract Work,455.67,455.67,0,0,0,0
20/03/2015,HUCK NETS (UK) LTD,Southwell Tr admin & ops,Repairs And Maintenance,65.15,78.18,0,13.03,0,20
20/03/2015,OCEANICSAUN,Dukeries Leisure Centre,Other Equipment And Tools,315.83,379,0,63.17,0,20
23/03/2015,MANUSCRIPT PEN CO,National Civil War Centre,Education & Outreach,22.06,26.47,0,4.41,0,20
23/03/2015,PAYPAL  HOMEDECOART,National Civil War Centre,Education & Outreach,79.28,95.14,0,15.86,0,20
23/03/2015,VIKING,National Civil War Centre,Education & Outreach,80,96,0,16,0,0
23/03/2015,THE RANGE,National Civil War Centre,Education & Outreach,14.58,17.5,0,2.92,0,20
23/03/2015,"Amazon Svcs Europe,SAR",National Civil War Centre,Education & Outreach,7.08,8.5,0,1.42,0,20
23/03/2015,WWW.WORKWEAREXPRESS.CO,National Civil War Centre,Clothing And Uniforms,220.4,264.48,0,44.08,0,20
23/03/2015,WWW.FASHIONATWORK.CO.U,National Civil War Centre,Clothing And Uniforms,116.22,139.47,0,23.25,0,20
23/03/2015,COMPANIES HOUSE,Growth Investment Fund,Professional Services,9,9,0,0,0,0
23/03/2015,Cross Country,Emergency Planning,Travel And Subsistence,36.7,36.7,0,0,0,0
23/03/2015,PERFECT ASSOCIATES,Dukeries Leisure Centre,Repairs And Maintenance,-7.33,-8.8,0,-1.47,0,20
24/03/2015,"Amazon Svcs Europe,SAR",National Civil War Centre,Education & Outreach,6.6,7.92,0,1.32,0,20
24/03/2015,WWW.CURIOUSMINDS.CO.UK,National Civil War Centre,Education & Outreach,64.17,77,0,12.83,0,20
24/03/2015,PAYPAL  LOG IMP,National Civil War Centre,Education & Outreach,2.57,3.09,0,0.52,0,20
24/03/2015,PAYPAL  JANDSEMPORI,National Civil War Centre,Education & Outreach,13.3,15.96,0,2.66,0,20
24/03/2015,PAYPAL  GLOBALVILLA,National Civil War Centre,Education & Outreach,14.65,17.58,0,2.93,0,20
24/03/2015,Amazon UK Marketplace,National Civil War Centre,Education & Outreach,4.97,5.97,0,1,0,20
24/03/2015,WWW.PILGRIMGIFTS.CO.UK,National Civil War Centre,Education & Outreach,15.82,18.99,0,3.17,0,20
24/03/2015,"Amazon Svcs Europe,SAR",National Civil War Centre,Education & Outreach,1.66,1.99,0,0.33,0,20
24/03/2015,PAYPAL  BESTBIES4YO,National Civil War Centre,Education & Outreach,6.4,7.68,0,1.28,0,20
24/03/2015,PAYPAL  KRABUKINS,National Civil War Centre,Education & Outreach,33.06,39.67,0,6.61,0,20
24/03/2015,PAYPAL  GRINNIS,National Civil War Centre,Education & Outreach,10.75,12.9,0,2.15,0,20
24/03/2015,PAYPAL  A2ZKIDSLTD,National Civil War Centre,Education & Outreach,14.92,17.9,0,2.98,0,20
24/03/2015,PAYPAL  BRIERWOODLI,National Civil War Centre,Education & Outreach,17.92,21.5,0,3.58,0,20
24/03/2015,VICTORIANSCH.CO.UK,National Civil War Centre,Education & Outreach,36.32,43.59,0,7.27,0,20
24/03/2015,"Amazon Svcs Europe,SAR",National Civil War Centre,Education & Outreach,9.41,11.29,0,1.88,0,20
24/03/2015,PAYPAL  TRACYDAVIS6,National Civil War Centre,Education & Outreach,4.16,4.99,0,0.83,0,20
24/03/2015,"Amazon Svcs Europe,SAR",National Civil War Centre,Education & Outreach,4.92,5.9,0,0.98,0,20
24/03/2015,"Amazon Svcs Europe,SAR",National Civil War Centre,Education & Outreach,22.92,27.51,0,4.59,0,20
24/03/2015,PAYPAL  HHH ENTERPR,National Civil War Centre,Education & Outreach,9.21,11.05,0,1.84,0,20
23/03/2015,RYDER & AMIES,National Civil War Centre,Education & Outreach,133.33,160,0,26.67,0,20
24/03/2015,WWW.CONNEVANS.COM,Grove Leisure Centre,Other Equipment And Tools,-3.9,-4.68,0,-0.78,0,20
25/03/2015,WORLDSTORES LTD,Building Services,Furniture And Fittings,110,132,0,22,0,20
23/03/2015,BT BILL PAYMENT 1,Cctv,Telephones,105.3,126.36,0,21.06,0,20
24/03/2015,XMA LTD,Sherwood Heath Tic,Stationery,89.68,107.62,0,17.94,0,0
24/03/2015,XMA LTD,Housing Options,Printing,47.06,56.47,0,9.41,0,0
25/03/2015,DVSA,Vehicle Pool Workshop,Materials,410,410,0,0,0,0
25/03/2015,DOG INK LIMITED,Personnel Section,Office Equipment Purchase,71.97,86.36,0,14.39,0,20
25/03/2015,ASDA HOME SHOPPING,Grove Leisure Centre,Other Equipment And Tools,69.21,69.21,0,0,0,0
25/03/2015,ASDA HOME SHOPPING,Southwell Tr admin & ops,Other Equipment And Tools,71.9,71.9,0,0,0,0
25/03/2015,ASDA HOME SHOPPING,Dukeries Leisure Centre,Other Equipment And Tools,66.54,66.54,0,0,0,0
25/03/2015,SAINSBURYS TO YOU 0816,Blidworth Leisure Centre,Other Equipment And Tools,53.86,53.86,0,0,0,0
25/03/2015,WWW.MAPLIN.CO.UK,Community Safety Partnership,Contractual Services,20.82,24.99,0,4.17,0,20
25/03/2015,WWW.MAPLIN.CO.UK,Community Safety Partnership,Contractual Services,396.97,476.37,0,79.4,0,20
25/03/2015,Virgintrains.co.uk,Licensing Admin,Travel And Subsistence,144,144,0,0,0,0
25/03/2015,Amazon UK Marketplace,Planning Support,Clothing And Uniforms,19.98,19.98,0,0,0,0
25/03/2015,WWW.CIPFA.ORG.UK,Central Personnel Expenses,Internal Training,200,200,0,0,0,0
24/03/2015,WWW.ARCO.CO.UK,Planning Support,Clothing And Uniforms,50.76,60.91,0,10.15,0,0
25/03/2015,WILKO RETAIL LIMIT,Env Health Proactive,Catering Equipment,8.25,8.25,0,0,0,0
25/03/2015,ASDA  STORES 4201,Env Health Proactive,Catering Equipment,16.37,16.37,0,0,0,0
25/03/2015,WM MORRISON 048,Env Health Proactive,Catering Equipment,1.67,2,0,0.33,0,20
25/03/2015,ASDA  STORES 4201,Env Health Proactive,Catering Equipment,19.19,19.19,0,0,0,0
26/03/2015,STOWAGRICULTURAL,Leisure & Culture Rech Works,Local Nature Reserves Maintnce,115.95,139.14,0,23.19,0,20
26/03/2015,CO OP FOOD,Env Health Proactive,Catering Equipment,9.52,9.52,0,0,0,0
27/03/2015,MIDLAND SKIP HIRE LTD,Dukeries Leisure Centre,Repairs And Maintenance,185,222,0,37,0,20
27/03/2015,VIRGINTRAINSEC SERVCS,Planning Policy,Travel And Subsistence,35.8,35.8,0,0,0,0
27/03/2015,OSBORNES NEWARK,Lorry Park,Materials,22.78,27.34,0,4.56,0,20
28/03/2015,OYSTER AUTOTOPUP,Aggregated Budgets,Travel And Subsistence,20,20,0,0,0,0
27/03/2015,MAILCHIMP,Palace Theatre,Advertising,44.34,44.34,0,0,0.08,0
27/03/2015,LEICESTERSHIRE C COUNC,Env Health Proactive,Catering Equipment,50,50,0,0,0,0
30/03/2015,WATERMILL INTERIORS LT,Kelham Hall Events,Premises Repairs & Renewals,304.99,366,0,61.01,0,0
30/03/2015,WATERMILL INTERIORS LT,Public Conveniences,Premises Repairs & Renewals,838.34,1005.99,0,167.65,0,0
30/03/2015,XMA LTD,Sherwood Heath Tic,Stationery,32.66,39.19,0,6.53,0,0
